[Event "Lliga Catalana 2024"]
[Site "Catalonia"]
[Date "2024.02.17"]
[Round "5.8"]
[White "Canal Oliveras, Joan"]
[Black "Simon Padros, Emili"]
[Result "1/2-1/2"]
[ECO "C18"]
[WhiteElo "2092"]
[BlackElo "2075"]
[Annotator "NA RC"]
[PlyCount "34"]
[EventDate "2024.01.18"]
[EventType "team-tourn"]
[EventCountry "ESP"]
[SourceTitle "playchess.com"]
[Source "ChessBase"]
[SourceQuality "1"]
[TimeControl "5400+30"]

1. e4 {[%emt 0:04:57]} e6 {[%emt 0:00:58]} 2. d4 {[%emt 0:00:08]} d5 {[%emt 0:00:10]} 3. Nc3 {[%emt 0:00:10]} Bb4 {[%emt 0:00:14]} 4. e5 {[%emt 0:00:17]} c5 {[%emt 0:00:10]} 5. a3 {[%emt 0:00:05]} Bxc3+ {[%emt 0:00:09]} 6. bxc3 {[%emt 0:00:05]} Qc7 {[%emt 0:00:11]} 7. Qg4 {[%emt 0:00:11]} f5 {[%emt 0:00:12]} 8. Qg3 {[%emt 0:00:15]} cxd4 {[%emt 0:00:14]} 9. cxd4 {[%emt 0:00:34]} Ne7 {[%emt 0:00:17]} 10. Bd2 {[%emt 0:00:28]} O-O {[%emt 0:00:23]} 11. Bd3 {[%emt 0:00:53]} b6 {[%emt 0:00:51]} 12. Ne2 {[%emt 0:02:36]} Ba6 {[%emt 0:00:22]} 13. Nf4 {[%emt 0:00:29]} Qd7 {[%emt 0:00:16]} 14. Bb4 {[%emt 0:02:48]} Rf7 {[%emt 0:04:48]} 15. O-O {[%emt 0:15:12]} Bxd3 {[%emt 0:02:38]} 16. Qxd3 {[%emt 0:00:50]} Nbc6 {[%emt 0:04:56]} 17. Bd2 {[%emt 0:08:23]} Rc8 {[%emt 0:03:40]} 1/2-1/2

[Event "Lliga Catalana 2024"]
[Site "Catalonia"]
[Date "2024.02.17"]
[Round "5.8"]
[White "Nadal Fajardo, Ricard"]
[Black "Perez Manas, Benjamin"]
[Result "1/2-1/2"]
[ECO "A80"]
[WhiteElo "2025"]
[BlackElo "2222"]
[Annotator "RC"]
[PlyCount "82"]
[EventDate "2024.01.18"]
[EventType "team-tourn"]
[EventCountry "ESP"]
[SourceTitle "playchess.com"]
[Source "ChessBase"]
[SourceQuality "1"]
[TimeControl "5400+30"]

1. d4 {[%emt 0:00:04]} f5 {[%emt 0:01:56]} 2. Nc3 {[%emt 0:01:41]} Nf6 {[%emt 0:00:25]} 3. Bg5 {[%emt 0:00:53]} d5 {[%emt 0:00:12]} 4. f3 {[%emt 0:02:18]} Be6 {[%emt 0:39:29]} 5. Nh3 {[%emt 0:07:48]} Qd7 {[%emt 0:04:04]} 6. Nf4 {[%emt 0:02:21]} Nc6 {[%emt 0:03:36]} 7. e3 {[%emt 0:03:43]} Bf7 {[%emt 0:44:18]} 8. Nd3 {[%emt 0:06:12]} O-O-O {[%emt 0:00:00]} 9. Qd2 {[%emt 0:14:57]} Qe8 {[%emt 0:00:00]} 10. O-O-O {[%emt 0:55:33]} e6 {[%emt 0:00:00]} 11. Ne5 {[%emt 0:00:00]} a6 {[%emt 0:00:00]} 12. a3 {[%emt 0:00:00]} Bd6 {[%emt 0:00:00]} 13. Nxc6 {[%emt 0:00:00]} Qxc6 {[%emt 0:00:00]} 14. Bf4 {[%emt 0:00:00]} Rhe8 {[%emt 0:00:00]} 15. Be5 {[%emt 0:00:00]} Bxe5 {[%emt 0:00:00]} 16. dxe5 {[%emt 0:00:00]} Nd7 {[%emt 0:00:00]} 17. Qd4 {[%emt 0:00:00]} Qb6 {[%emt 0:00:00]} 18. Qxb6 {[%emt 0:00:00]} cxb6 {[%emt 0:00:00]} 19. f4 {[%emt 0:00:00]} Bh5 {[%emt 0:00:00]} 20. Be2 {[%emt 0:00:00]} Bxe2 {[%emt 0:00:00]} 21. Nxe2 {[%emt 0:00:00]} Nc5 {[%emt 0:00:00]} 22. Rhg1 {[%emt 0:00:00]} Ne4 {[%emt 0:00:00]} 23. h3 {[%emt 0:00:00]} h5 {[%emt 0:00:00]} 24. g4 {[%emt 0:00:00]} fxg4 {[%emt 0:00:00]} 25. hxg4 {[%emt 0:00:00]} Nf2 {[%emt 0:00:00]} 26. gxh5 {[%emt 0:01:19]} Nxd1 {[%emt 0:00:00]} 27. Kxd1 {[%emt 0:00:03]} Re7 {[%emt 0:01:07]} 28. Nd4 {[%emt 0:00:31]} Kd7 {[%emt 0:02:49]} 29. Ke2 {[%emt 0:01:01]} Ke8 {[%emt 0:02:06]} 30. Kf3 {[%emt 0:01:56]} Kf7 {[%emt 0:01:29]} 31. Rg6 {[%emt 0:00:29]} Rh8 {[%emt 0:00:28]} 32. Kg4 {[%emt 0:05:03]} Ree8 {[%emt 0:03:36]} 33. f5 {[%emt 0:00:29]} exf5+ {[%emt 0:00:18]} 34. Nxf5 {[%emt 0:00:05]} Rxe5 {[%emt 0:00:32]} 35. Rxb6 {[%emt 0:00:52]} Rb8 {[%emt 0:00:52]} 36. Rg6 {[%emt 0:00:28]} Kf8 {[%emt 0:00:35]} 37. Kf4 {[%emt 0:00:39]} Re4+ {[%emt 0:00:09]} 38. Kg5 {[%emt 0:00:04]} Re5 {[%emt 0:00:55]} 39. Kf4 {[%emt 0:00:45]} Re4+ {[%emt 0:00:10]} 40. Kg5 {[%emt 0:00:04]} Re5 {[%emt 0:00:46]} 41. Kf4 {[%emt 0:00:09]} Re4+ {[%emt 0:01:08]} 1/2-1/2

[Event "Lliga Catalana 2024"]
[Site "Catalonia"]
[Date "2024.02.17"]
[Round "5.9"]
[White "Obon Temprano, Sergi"]
[Black "Pares Vives, Natalia"]
[Result "1-0"]
[ECO "A21"]
[WhiteElo "2194"]
[BlackElo "2146"]
[Annotator "RC"]
[PlyCount "141"]
[EventDate "2024.01.18"]
[EventType "team-tourn"]
[EventCountry "ESP"]
[SourceTitle "playchess.com"]
[Source "ChessBase"]
[SourceQuality "1"]
[TimeControl "5400+30"]

1. Nf3 {[%emt 0:00:03]} d6 {[%emt 0:00:06]} 2. c4 {[%emt 0:00:13]} g6 {[%emt 0:00:06]} 3. Nc3 {[%emt 0:00:10]} Bg7 {[%emt 0:00:06]} 4. g3 {[%emt 0:00:12]} e5 {[%emt 0:00:09]} 5. Bg2 {[%emt 0:00:21]} Ne7 {[%emt 0:00:48]} 6. O-O {[%emt 0:03:00]} O-O {[%emt 0:01:52]} 7. Rb1 {[%emt 0:07:01]} d5 {[%emt 0:04:22]} 8. cxd5 {[%emt 0:07:39]} Nxd5 {[%emt 1:27:01]} 9. d3 {[%emt 0:01:36]} Nc6 {[%emt 0:00:00]} 10. Nxe5 {[%emt 0:09:15]} Nxc3 {[%emt 0:00:00]} 11. Nxc6 {[%emt 0:00:15]} Nxe2+ {[%emt 0:00:00]} 12. Qxe2 {[%emt 0:02:44]} bxc6 {[%emt 0:00:00]} 13. Bxc6 {[%emt 0:03:46]} Bh3 {[%emt 0:00:00]} 14. Rd1 {[%emt 0:06:55]} Rb8 {[%emt 0:00:00]} 15. Be3 {[%emt 0:04:47]} Qd6 {[%emt 0:00:00]} 16. Bf3 {[%emt 0:10:03]} Bd4 {[%emt 0:00:00]} 17. Bxd4 {[%emt 0:05:25]} Qxd4 {[%emt 0:00:00]} 18. Qe4 {[%emt 0:00:26]} Rfd8 {[%emt 0:00:00]} 19. Qxd4 {[%emt 0:03:17]} Rxd4 {[%emt 0:00:00]} 20. b3 {[%emt 0:00:12]} Rbd8 {[%emt 0:00:00]} 21. Be2 {[%emt 0:02:44]} Bf5 {[%emt 0:06:30]} 22. Rbc1 {[%emt 0:03:49]} Re8 {[%emt 0:00:00]} 23. Bf1 {[%emt 0:02:08]} Re7 {[%emt 0:00:00]} 24. Re1 {[%emt 0:26:29]} Rxe1 {[%emt 0:00:00]} 25. Rxe1 {[%emt 0:00:00]} Kf8 {[%emt 0:00:00]} 26. Rc1 {[%emt 0:00:00]} Rd7 {[%emt 0:00:00]} 27. Kg2 {[%emt 0:00:00]} Ke7 {[%emt 0:00:00]} 28. Rc3 {[%emt 0:02:00]} Kd8 {[%emt 0:00:00]} 29. f4 {[%emt 0:00:00]} h5 {[%emt 0:04:00]} 30. Kf2 {[%emt 0:00:00]} Rd6 {[%emt 0:00:00]} 31. Ke3 {[%emt 0:00:00]} Re6+ {[%emt 0:00:00]} 32. Kd2 {[%emt 0:00:00]} Ra6 {[%emt 0:00:00]} 33. Rc2 {[%emt 0:00:00]} f6 {[%emt 0:00:00]} 34. Be2 {[%emt 0:00:00]} Kc8 {[%emt 0:00:00]} 35. Bf3 {[%emt 0:00:00]} Rd6 {[%emt 0:00:00]} 36. Rc3 {[%emt 0:00:00]} Ra6 {[%emt 0:00:00]} 37. a4 {[%emt 0:00:00]} Rd6 {[%emt 0:00:00]} 38. Ke3 {[%emt 0:00:00]} Be6 {[%emt 0:00:00]} 39. b4 {[%emt 0:00:00]} Bd7 {[%emt 0:00:00]} 40. b5 {[%emt 0:00:00]} a6 {[%emt 0:01:06]} 41. Bc6 {[%emt 0:00:42]} axb5 {[%emt 0:00:52]} 42. axb5 {[%emt 0:00:09]} Kd8 {[%emt 0:01:04]} 43. d4 {[%emt 0:01:15]} Re6+ {[%emt 0:00:37]} 44. Kd3 {[%emt 0:01:05]} Rd6 {[%emt 0:01:27]} 45. Rc5 {[%emt 0:05:19]} Bf5+ {[%emt 0:00:33]} 46. Be4 {[%emt 0:00:00]} Bxe4+ {[%emt 0:00:21]} 47. Kxe4 {[%emt 0:00:00]} Re6+ {[%emt 0:00:05]} 48. Kd3 {[%emt 0:00:00]} Rb6 {[%emt 0:00:29]} 49. Kc4 {[%emt 0:02:00]} Kd7 {[%emt 0:00:08]} 50. d5 {[%emt 0:00:30]} Rb8 {[%emt 0:00:05]} 51. Rc6 {[%emt 0:00:00]} Rf8 {[%emt 0:00:02]} 52. Kc5 {[%emt 0:00:00]} Rf7 {[%emt 0:00:36]} 53. b6 {[%emt 0:01:30]} cxb6+ {[%emt 0:00:07]} 54. Rxb6 {[%emt 0:00:00]} Kc8 {[%emt 0:03:08]} 55. Kd6 {[%emt 0:00:00]} Ra7 {[%emt 0:00:00]} 56. Rb2 {[%emt 0:00:00]} f5 {[%emt 0:00:45]} 57. Ke6 {[%emt 0:00:00]} Ra3 {[%emt 0:00:39]} 58. Rd2 {[%emt 0:00:27]} h4 {[%emt 0:01:06]} 59. gxh4 {[%emt 0:01:14]} Rh3 {[%emt 0:00:49]} 60. d6 {[%emt 0:01:05]} Re3+ {[%emt 0:00:04]} 61. Kf6 {[%emt 0:00:06]} Rh3 {[%emt 0:00:41]} 62. Kxg6 {[%emt 0:00:16]} Rxh4 {[%emt 0:00:16]} 63. Kxf5 {[%emt 0:00:10]} Kd7 {[%emt 0:00:01]} 64. Kg5 {[%emt 0:00:22]} Rh8 {[%emt 0:02:29]} 65. f5 {[%emt 0:00:11]} Rg8+ {[%emt 0:00:00]} 66. Kf6 {[%emt 0:00:05]} Rg4 {[%emt 0:00:00]} 67. Kf7 {[%emt 0:00:18]} Rh4 {[%emt 0:00:00]} 68. f6 {[%emt 0:00:10]} Rg4 {[%emt 0:00:00]} 69. Kf8 {[%emt 0:00:17]} Rg6 {[%emt 0:00:13]} 70. f7 {[%emt 0:00:09]} Rg4 {[%emt 0:00:01]} 71. h3 {[%emt 0:00:26]} 1-0

[Event "Lliga Catalana 2024"]
[Site "Catalonia"]
[Date "2024.02.17"]
[Round "5.9"]
[White "Garcia Gallardo, Victor"]
[Black "Comellas Blanchart, Jordi"]
[Result "0-1"]
[ECO "B11"]
[WhiteElo "2075"]
[BlackElo "1985"]
[Annotator "NA RC"]
[PlyCount "66"]
[EventDate "2024.01.18"]
[EventType "team-tourn"]
[EventCountry "ESP"]
[SourceTitle "playchess.com"]
[Source "ChessBase"]
[SourceQuality "1"]
[TimeControl "5400+30"]

1. e4 {[%emt 0:01:32]} c6 {[%emt 0:00:08]} 2. Nc3 {[%emt 0:00:11]} d5 {[%emt 0:00:06]} 3. Nf3 {[%emt 0:00:34]} dxe4 {[%emt 0:00:17]} 4. Nxe4 {[%emt 0:00:11]} Nf6 {[%emt 0:00:11]} 5. Qe2 {[%emt 0:00:07]} Nxe4 {[%emt 0:00:22]} 6. Qxe4 {[%emt 0:00:07]} Nd7 {[%emt 0:00:08]} 7. Bc4 {[%emt 0:00:05]} Nf6 {[%emt 0:00:10]} 8. Ne5 {[%emt 0:00:15]} e6 {[%emt 0:00:14]} 9. Qe2 {[%emt 0:00:07]} b5 {[%emt 0:00:34]} 10. Bb3 {[%emt 0:00:09]} Qc7 {[%emt 0:00:35]} 11. d4 {[%emt 0:00:37]} Bd6 {[%emt 0:00:13]} 12. Bg5 {[%emt 0:12:04]} a5 {[%emt 0:08:44]} 13. c3 {[%emt 0:05:25]} a4 {[%emt 0:04:39]} 14. Bc2 {[%emt 0:00:17]} Nd5 {[%emt 0:00:24]} 15. O-O {[%emt 0:03:14]} a3 {[%emt 0:13:08]} 16. Bc1 {[%emt 0:27:53]} axb2 {[%emt 0:17:34]} 17. Bxb2 {[%emt 0:00:05]} O-O {[%emt 0:04:10]} 18. Rfe1 {[%emt 0:14:18]} Bb7 {[%emt 0:07:42]} 19. Qh5 {[%emt 0:01:48]} f5 {[%emt 0:17:57]} 20. Bb3 {[%emt 0:06:39]} c5 {[%emt 0:04:10]} 21. g3 {[%emt 0:08:36]} c4 {[%emt 0:03:13]} 22. Bc2 {[%emt 0:05:58]} b4 {[%emt 0:06:55]} 23. cxb4 {[%emt 0:00:41]} Nxb4 {[%emt 0:00:43]} 24. Rac1 {[%emt 0:08:12]} Bxe5 {[%emt 0:05:56]} 25. Rxe5 {[%emt 0:00:21]} Qc6 {[%emt 0:01:20]} 26. d5 {[%emt 0:00:38]} Nxd5 {[%emt 0:00:39]} 27. Qg5 {[%emt 0:03:16]} Nf4 {[%emt 0:02:27]} 28. Be4 {[%emt 0:00:11]} Nh3+ {[%emt 0:00:27]} 29. Kf1 {[%emt 0:00:20]} Nxg5 {[%emt 0:00:21]} 30. Bxc6 {[%emt 0:00:14]} Bxc6 {[%emt 0:00:06]} 31. Rxc4 {[%emt 0:00:08]} Bd5 {[%emt 0:00:25]} 32. Rc7 {[%emt 0:00:31]} Rf7 {[%emt 0:00:19]} 33. Rc1 {[%emt 0:01:24]} Rxa2 {[%emt 0:00:44]} 0-1

[Event "Lliga Catalana 2024"]
[Site "Catalonia"]
[Date "2024.02.17"]
[Round "5.10"]
[White "Chigaeva, Anastasia"]
[Black "Bosque Ortega, Xavier"]
[Result "0-1"]
[ECO "D13"]
[WhiteElo "2106"]
[BlackElo "2187"]
[Annotator "RC"]
[PlyCount "164"]
[EventDate "2024.01.18"]
[EventType "team-tourn"]
[EventCountry "ESP"]
[SourceTitle "playchess.com"]
[Source "ChessBase"]
[SourceQuality "1"]
[TimeControl "5400+30"]

1. d4 {[%emt 1:31:00]} d5 {[%emt 1:31:00]} 2. c4 {[%emt 0:00:30]} c6 {[%emt 0:00:30]} 3. cxd5 {[%emt 0:00:30]} cxd5 {[%emt 0:00:30]} 4. Bf4 {[%emt 0:00:30]} Nc6 {[%emt 0:00:30]} 5. e3 {[%emt 0:00:30]} Nf6 {[%emt 0:00:30]} 6. Nc3 {[%emt 0:00:30]} e6 {[%emt 0:00:30]} 7. Nf3 {[%emt 0:00:30]} Be7 {[%emt 0:00:30]} 8. Be2 {[%emt 0:00:30]} O-O {[%emt 0:00:30]} 9. O-O {[%emt 0:00:30]} Nh5 {[%emt 0:00:30]} 10. Be5 {[%emt 0:00:30]} f6 {[%emt 0:00:30]} 11. Bg3 {[%emt 0:00:30]} Nxg3 {[%emt 0:00:30]} 12. hxg3 {[%emt 0:00:30]} f5 {[%emt 0:00:30]} 13. Rc1 {[%emt 0:00:30]} Bd7 {[%emt 0:00:30]} 14. a3 {[%emt 0:00:30]} g5 {[%emt 0:00:30]} 15. b4 {[%emt 0:00:30]} g4 {[%emt 0:00:30]} 16. Ne5 {[%emt 0:00:30]} Bd6 {[%emt 0:00:30]} 17. Nxc6 {[%emt 0:00:30]} Bxc6 {[%emt 0:00:30]} 18. Bxg4 {[%emt 0:00:30]} fxg4 {[%emt 0:00:30]} 19. Qxg4+ {[%emt 0:00:30]} Kh8 {[%emt 0:00:30]} 20. Qxe6 {[%emt 0:00:30]} Rf6 {[%emt 0:00:30]} 21. Qh3 {[%emt 0:00:30]} Qe8 {[%emt 0:00:30]} 22. g4 {[%emt 0:00:30]} Rg6 {[%emt 0:00:30]} 23. f4 {[%emt 0:00:30]} a6 {[%emt 0:00:30]} 24. g5 {[%emt 0:00:30]} Qg8 {[%emt 0:00:30]} 25. Rf3 {[%emt 0:00:30]} Re8 {[%emt 0:00:30]} 26. Kf2 {[%emt 0:00:30]} Qg7 {[%emt 0:00:30]} 27. Rh1 {[%emt 0:00:30]} Rge6 {[%emt 0:00:30]} 28. f5 {[%emt 0:00:30]} Re4 {[%emt 0:00:30]} 29. f6 {[%emt 0:00:30]} Qg6 {[%emt 0:00:30]} 30. f7 {[%emt 0:00:30]} Rf8 {[%emt 0:00:30]} 31. Nxe4 {[%emt 0:00:30]} Qxe4 {[%emt 0:00:30]} 32. Re1 {[%emt 0:00:30]} Qg6 {[%emt 0:00:30]} 33. Qf5 {[%emt 0:00:30]} Kg7 {[%emt 0:00:30]} 34. Rh1 {[%emt 0:00:30]} Qxf5 {[%emt 0:00:30]} 35. Rxf5 {[%emt 0:00:30]} Be7 {[%emt 0:00:30]} 36. Ke2 {[%emt 0:00:30]} Kg6 {[%emt 0:00:30]} 37. Rf2 {[%emt 0:00:30]} Bxg5 {[%emt 0:00:30]} 38. Kd2 {[%emt 0:00:30]} Bf6 {[%emt 0:00:30]} 39. Rhf1 {[%emt 0:00:30]} Rxf7 {[%emt 0:00:30]} 40. Rf4 {[%emt 0:00:30]} Bd7 {[%emt 0:00:30]} 41. R1f3 {[%emt 0:00:30]} h5 {[%emt 0:00:30]} 42. Rf1 {[%emt 0:00:30]} Bb5 {[%emt 0:00:30]} 43. R1f3 {[%emt 0:00:30]} Bd7 {[%emt 0:00:30]} 44. Rf1 {[%emt 0:00:30]} Bg4 {[%emt 0:00:30]} 45. R1f2 {[%emt 0:00:30]} Be6 {[%emt 0:00:30]} 46. Rf1 {[%emt 0:00:30]} Bd8 {[%emt 0:00:30]} 47. Rxf7 {[%emt 0:00:30]} Bxf7 {[%emt 0:00:30]} 48. Kd3 {[%emt 0:00:30]} Kg7 {[%emt 0:00:30]} 49. Rc1 {[%emt 0:00:30]} Bg6+ {[%emt 0:00:30]} 50. Ke2 {[%emt 0:00:30]} Bf5 {[%emt 0:00:30]} 51. Kf3 {[%emt 0:00:30]} Be4+ {[%emt 0:00:30]} 52. Kg3 {[%emt 0:00:30]} Kf7 {[%emt 0:00:30]} 53. Rc8 {[%emt 0:00:30]} Ke7 {[%emt 0:00:30]} 54. Kf2 {[%emt 0:00:30]} Kd7 {[%emt 0:00:30]} 55. Rc1 {[%emt 0:00:30]} Bh4+ {[%emt 0:00:30]} 56. g3 {[%emt 0:00:30]} Be7 {[%emt 0:00:30]} 57. Rc3 {[%emt 0:00:30]} Bd6 {[%emt 0:00:30]} 58. Rc1 {[%emt 0:00:30]} Bf5 {[%emt 0:00:30]} 59. Rc3 {[%emt 0:00:30]} Ke7 {[%emt 0:00:30]} 60. Rc1 {[%emt 0:00:30]} Kf6 {[%emt 0:00:30]} 61. Rc3 {[%emt 0:00:30]} Kg5 {[%emt 0:00:30]} 62. e4 {[%emt 0:00:30]} dxe4 {[%emt 0:00:30]} 63. Re3 {[%emt 0:00:30]} Kf6 {[%emt 0:00:30]} 64. Rc3 {[%emt 0:00:30]} Bd7 {[%emt 0:00:30]} 65. Rc1 {[%emt 0:00:30]} Bc6 {[%emt 0:00:30]} 66. Rf1 {[%emt 0:00:30]} Ke6 {[%emt 0:00:30]} 67. Rg1 {[%emt 0:00:30]} Kd5 {[%emt 0:00:30]} 68. Ke3 {[%emt 0:00:30]} Bd7 {[%emt 0:00:30]} 69. Rg2 {[%emt 0:00:30]} Bf8 {[%emt 0:00:30]} 70. Rc2 {[%emt 0:00:30]} Bh6+ {[%emt 0:00:30]} 71. Ke2 {[%emt 0:00:30]} Kxd4 {[%emt 0:00:30]} 72. Rc7 {[%emt 0:00:30]} Bb5+ {[%emt 0:00:30]} 73. Ke1 {[%emt 0:00:30]} Ke3 {[%emt 0:00:30]} 74. Rh7 {[%emt 0:00:30]} Bg5 {[%emt 0:00:30]} 75. Rxh5 {[%emt 0:00:30]} Bf6 {[%emt 0:00:30]} 76. Rc5 {[%emt 0:00:30]} Bd4 {[%emt 0:00:30]} 77. Rc7 {[%emt 0:00:30]} Be5 {[%emt 0:00:30]} 78. Rc5 {[%emt 0:00:30]} Bxg3+ {[%emt 0:00:30]} 79. Kd1 {[%emt 0:00:30]} Kd4 {[%emt 0:00:30]} 80. Rc8 {[%emt 0:00:30]} e3 {[%emt 0:00:30]} 81. Rd8+ {[%emt 0:00:30]} Kc3 {[%emt 0:00:30]} 82. Rc8+ {[%emt 0:00:30]} Kb3 {[%emt 0:00:30]} 0-1

[Event "Lliga Catalana 2024"]
[Site "Catalonia"]
[Date "2024.02.17"]
[Round "5.10"]
[White "Romeu Viladot, Emili"]
[Black "Gonzalez Cuervo, Eloy"]
[Result "0-1"]
[ECO "D35"]
[WhiteElo "1941"]
[BlackElo "2029"]
[Annotator "NA RC"]
[PlyCount "48"]
[EventDate "2024.01.18"]
[EventType "team-tourn"]
[EventCountry "ESP"]
[SourceTitle "playchess.com"]
[Source "ChessBase"]
[SourceQuality "1"]
[TimeControl "5400+30"]

1. d4 {[%emt 0:00:09]} d5 {[%emt 0:00:09]} 2. c4 {[%emt 0:00:05]} e6 {[%emt 0:00:07]} 3. Nc3 {[%emt 0:00:06]} Be7 {[%emt 0:00:11]} 4. cxd5 {[%emt 0:01:53]} exd5 {[%emt 0:00:11]} 5. Bf4 {[%emt 0:00:34]} Nf6 {[%emt 0:01:03]} 6. Qc2 {[%emt 0:01:10]} c5 {[%emt 0:02:00]} 7. dxc5 {[%emt 0:02:59]} Nc6 {[%emt 0:05:51]} 8. e3 {[%emt 0:03:34]} O-O {[%emt 0:15:27]} 9. Nf3 {[%emt 0:04:05]} Ne4 {[%emt 0:09:55]} 10. Rd1 {[%emt 0:08:16]} Nb4 {[%emt 0:06:07]} 11. Qc1 {[%emt 0:08:41]} Qa5 {[%emt 0:06:54]} 12. a3 {[%emt 0:01:10]} Na2 {[%emt 0:08:31]} 13. b4 {[%emt 0:03:37]} Nxb4 {[%emt 0:08:08]} 14. axb4 {[%emt 0:03:04]} Qxb4 {[%emt 0:00:06]} 15. Be5 {[%emt 0:02:52]} Bf6 {[%emt 0:00:26]} 16. Bxf6 {[%emt 0:03:46]} gxf6 {[%emt 0:00:07]} 17. Rd3 {[%emt 0:00:20]} Nxc5 {[%emt 0:01:35]} 18. Rd4 {[%emt 0:02:54]} Qa5 {[%emt 0:00:06]} 19. Nd2 {[%emt 0:00:33]} Be6 {[%emt 0:03:25]} 20. Qb2 {[%emt 0:11:46]} Rac8 {[%emt 0:05:11]} 21. Nxd5 {[%emt 0:08:47]} Qd8 {[%emt 0:12:09]} 22. Nxf6+ {[%emt 0:06:22]} Qxf6 {[%emt 0:00:16]} 23. Rg4+ {[%emt 0:00:04]} Bxg4 {[%emt 0:00:08]} 24. Qxf6 {[%emt 0:00:04]} Nd3+ {[%emt 0:00:07]} 0-1

[Event "Lliga Catalana 2024"]
[Site "Catalonia"]
[Date "2024.02.24"]
[Round "6.1"]
[White "Almeida Quintana, Omar"]
[Black "Campos Moreno, Javier B."]
[Result "1-0"]
[ECO "E03"]
[WhiteElo "2506"]
[BlackElo "2409"]
[Annotator "TA"]
[PlyCount "78"]
[EventDate "2024.01.18"]
[EventType "team-tourn"]
[EventCountry "ESP"]
[SourceTitle "playchess.com"]
[Source "ChessBase"]
[SourceQuality "1"]
[TimeControl "5400+30"]

{[%evp 16,78,0,0,12,0,0,13,25,0,0,-9,-8,-30,8,-4,-19,-11,42,22,25,26,102,64,89,77,98,83,133,90,109,85,207,227,231,212,178,115,276,289,289,259,259,259,382,112,117,109,105,90,139,117,291,310,310,311,306,297,373,375,375,375,305,286,426]} 1. Nf3 {[%emt 0:00:03]} d5 {[%emt 0:00:15]} 2. c4 {[%emt 0:01:01]} e6 {[%emt 0:00:19]} 3. g3 {[%emt 0:00:19]} Nf6 {[%emt 0:00:36]} 4. Bg2 {[%emt 0:00:20]} dxc4 {[%emt 0:02:40]} 5. Qa4+ {[%emt 0:00:27]} Nbd7 {[%emt 0:00:22]} 6. Qxc4 {[%emt 0:00:14]} c5 {[%emt 0:00:21]} 7. O-O {[%emt 0:00:30]} b6 {[%emt 0:03:37]} 8. d4 {[%emt 0:07:56]} Bb7 {[%emt 0:02:58]} 9. Rd1 {[%emt 1:24:10]} Rc8 {[%emt 0:08:16]} 10. Nc3 {[%emt 0:00:00]} a6 {[%emt 0:11:40]} 11. a4 {[%emt 0:00:00]} Be7 {[%emt 0:10:19] The position is equal.} (11... cxd4 {is interesting.} 12. Qxd4 Bc5 13. Qf4 Qe7) 12. Bg5 {[%emt 0:00:00]} O-O {[%emt 0:12:44]} 13. Bxf6 {[%emt 0:00:00]} Nxf6 {[%emt 0:02:51]} ({Much weaker is} 13... Bxf6 14. d5 exd5 15. Nxd5 $16) 14. dxc5 {[%emt 0:00:00]} Qc7 {[%emt 0:04:20]} 15. b4 {[%emt 0:00:00]} bxc5 {[%emt 0:00:50]} 16. b5 {[%emt 0:00:00]} Bd5 {[%emt 0:01:24]} (16... Nd5 $11 17. Rab1 Rfd8) 17. Qf4 {[%emt 0:00:00] Qxc7 is the strong threat.} Qa5 {[%emt 0:04:38]} 18. Qd2 {[%emt 0:00:00][%cal Rc3d5]} Bxf3 {[%emt 0:08:04]} (18... Qc7 $1 $11) 19. Bxf3 {[%emt 0:00:00][%cal Oc3d5] Threatens to win with Nd5!} Kh8 {[%emt 0:04:35]} 20. Qc2 {[%emt 0:00:00] Hoping for Bb7.} Rcd8 {[%emt 0:05:37]} 21. e3 {[%emt 0:00:00]} c4 {[%emt 0:02:22]} (21... axb5 $142 22. axb5 (22. Nxb5 Nd7 $14) 22... Rxd1+ 23. Rxd1 Rd8) 22. Rab1 $16 {[%emt 0:00:00]} Nd7 {[%emt 0:06:48]} 23. Bb7 {[%emt 0:00:00] White is much more active.} axb5 {[%emt 0:02:26]} (23... Nc5 $16 {was called for.} 24. Rxd8 Rxd8) 24. Rxb5 $18 {[%emt 0:00:00]} Qa7 {[%emt 0:00:41]} 25. a5 {[%emt 0:00:00]} Nc5 {[%emt 0:02:01] [#]} 26. a6 {[%emt 0:03:32]} ({White should play} 26. Rdb1 $1 $18 {[%mdl 512]}) 26... Bf6 $2 {[%emt 0:00:09]} (26... Rd3 $16) 27. Rxd8 {[%emt 0:00:42]} Rxd8 {[%emt 0:00:10]} 28. Ne4 {[%emt 0:01:55]} Nxe4 {[%emt 0:00:42]} 29. Qxe4 {[%emt 0:00:01]} ({Inferior is} 29. Bxe4 Qxa6 30. Qxc4 g6 $11) 29... c3 {[%emt 0:00:11]} (29... g6 $142 30. Qxc4 h6) 30. Qc4 $2 {[%emt 0:00:09]} (30. Kg2 $18 {is the precise move to win.}) 30... g6 $16 {[%emt 0:01:25]} 31. Qc7 $36 {[%emt 0:00:36][%mdl 2048] Black is under strong pressure.} Kg7 {[%emt 0:00:19]} 32. Rc5 {[%emt 0:00:15][%cal Bb5c5,Bc5c3,Bc3b3,Bb3b7][%mdl 32]} Rd1+ {[%emt 0:01:51]} 33. Kg2 {[%emt 0:00:01]} Ra1 $2 {[%emt 0:00:12]} (33... Bd8 $16 34. Qc6 Qb6) 34. Rxc3 $18 {[%emt 0:01:37]} Rxa6 {[%emt 0:01:14]} 35. Bxa6 {[%emt 0:00:42]} Qxa6 {[%emt 0:00:02] KQR-KQB} 36. Rb3 {[%emt 0:00:36] Black must now prevent Rb7.} e5 {[%emt 0:00:35]} 37. Rb7 {[%emt 0:01:23]} Qe6 {[%emt 0:00:29]} 38. e4 {[%emt 0:00:08] Against Qd5} h5 {[%emt 0:00:49]} 39. Qd7 {[%emt 0:00:45]} Kg8 {[%emt 0:01:08] Weighted Error Value: White=0.28 (precise) /Black=0.36.  Loses game:     	---       	Black=2      Missed win:     	White=1     	---        Mistake:       	White=1     	Black=6      Inaccurate:     	White=1     	Black=1      OK:         	White=9     	Black=10     Best:        	---       	Black=3} (39... Qxd7 {keeps fighting.} 40. Rxd7 Bg5) 1-0